fUSD/lending_fUSD_20241121
["ID","MTS","AMOUNT","RATE_DAILY","PERIOD"]
[342842021,1732176640687,-500.0,0.00042599,18]
[342842022,1732176640702,-500.0,0.00042599,18]
[342842023,1732176640717,-500.0,0.00042599,18]
[342842024,1732176640730,-500.0,0.00042599,18]
[342842025,1732176640742,-1126.77,0.00042599,18]
[342842026,1732176640756,-1119.85,0.00042599,18]
[342842027,1732176640770,-500.0,0.00042599,18]
[342842028,1732176640785,-500.0,0.00042599,18]
[342842029,1732176640799,-500.0,0.00042599,18]
[342842030,1732176640814,-658.75,0.00042599,18]
[342842031,1732176640829,-1769.73,0.00042599,18]
[342842032,1732176640844,-1093.44,0.00042599,18]
[342842033,1732176640857,-6255.25,0.00042599,18]
[342842034,1732176640870,-11166.38,0.00042599,18]
[342842035,1732176640884,-500.0,0.00042599,18]
[342842036,1732176640898,-500.0,0.00042599,18]
[342842037,1732176640911,-500.0,0.00042599,18]
[342842038,1732176640922,-500.0,0.00042599,18]
[342842039,1732176640935,-2021.05,0.00042599,18]
[342842040,1732176640952,-48265.3,0.00042599,18]
[342842041,1732176640963,-1734.43,0.00042599,18]
[342842042,1732176640974,-690.66,0.00042599,18]
[342842043,1732176640987,-500.0,0.00042599,18]
[342842044,1732176641002,-500.0,0.00042599,18]
[342842045,1732176641016,-500.0,0.00042599,18]
[342842046,1732176641029,-500.0,0.00042599,18]
[342842047,1732176641042,-719.15,0.00042599,18]
[342842048,1732176641065,-1921.16,0.00042599,18]
[342842049,1732176641078,-991.75,0.00042599,18]
[342842050,1732176641090,-500.0,0.00042599,18]
[342842051,1732176641102,-2229.18,0.00042599,18]
[342842052,1732176641115,-850.88,0.00042599,18]
[342842053,1732176641126,-1501.26,0.00042599,18]
[342842054,1732176641138,-279.43823062,0.00042599,18]
[342842055,1732176641150,-500.0,0.00042599,18]
[342842056,1732176641162,-500.0,0.00042599,18]
[342842057,1732176641175,-500.0,0.00042599,18]
[342842058,1732176641187,-779.44,0.00042599,18]
[342842059,1732176641200,-2234.01,0.00042599,18]
[342842060,1732176641213,-664.4,0.00042599,18]
[342842061,1732176641225,-582.82,0.00042599,18]
[342842062,1732176641238,-500.0,0.00042599,18]
[342842063,1732176641251,-500.0,0.00042599,18]
[342842064,1732176641265,-500.0,0.00042599,18]
[342842065,1732176641278,-1118.68,0.00042599,18]
[342842066,1732176641291,-1447.77,0.00042599,18]
[342842067,1732176641303,-327.93048079,0.00042599,18]
[342842068,1732176641316,-1255.38,0.00042599,18]
[342842069,1732176641328,-1672.39,0.00042599,18]
[342842070,1732176641341,-500.0,0.00042599,18]
[342842071,1732176641354,-35263.6,0.00042599,18]
[342842072,1732176641366,-500.0,0.00042599,18]
[342842073,1732176641379,-500.0,0.00042599,18]
[342842074,1732176641392,-500.0,0.00042599,18]
[342842075,1732176641404,-2137.58,0.00042599,18]
[342842076,1732176641417,-500.0,0.00042599,18]
[342842077,1732176641431,-500.0,0.00042599,18]
[342842078,1732176641444,-3282.65,0.00042599,18]
[342842079,1732176641457,-2009.54,0.00042599,18]
[342842080,1732176641470,-580.94,0.00042599,18]
[342842081,1732176641483,-500.0,0.00042599,18]
[342842082,1732176641497,-5001.93,0.00042599,18]
[342842083,1732176641512,-3385.18,0.00042599,18]
[342842084,1732176641525,-644.29,0.00042599,18]
[342842085,1732176641538,-500.0,0.00042599,18]
[342842086,1732176641551,-1921.19,0.00042599,18]
[342842087,1732176641563,-500.0,0.00042599,18]
[342842088,1732176641575,-500.0,0.00042599,18]
[342842089,1732176641587,-1910.08,0.00042599,18]
[342842090,1732176641599,-1633.91,0.00042599,18]
[342842091,1732176641611,-500.0,0.00042599,18]
[342842092,1732176641624,-584.61,0.00042599,18]
[342842093,1732176641635,-953.5,0.00042599,18]
[342842094,1732176641648,-629.89,0.00042599,18]
[342842095,1732176641660,-1711.06,0.00042599,18]
[342842096,1732176641672,-500.0,0.00042599,18]
[342842097,1732176641684,-523.64,0.00042599,18]
[342842098,1732176641696,-500.0,0.00042599,18]
[342842099,1732176641708,-4029.65,0.00042599,18]
[342842100,1732176641720,-750.78,0.00042599,18]
[342842101,1732176641732,-500.0,0.00042599,18]
[342842102,1732176641745,-699.43,0.00042599,18]
[342842103,1732176641759,-1511.64,0.00042599,18]
[342842104,1732176641771,-500.0,0.00042599,18]
[342842105,1732176641783,-4187.73,0.00042599,18]
[342842106,1732176641795,-500.0,0.00042599,18]
[342842107,1732176641807,-2294.51,0.00042599,18]
[342842108,1732176641820,-2457.99,0.00042599,18]
[342842109,1732176641832,-500.0,0.00042599,18]
[342842110,1732176641845,-500.0,0.00042599,18]
[342842111,1732176641857,-1502.09,0.00042599,18]
[342842112,1732176641869,-1432.32,0.00042599,18]
[342842113,1732176641881,-2000.0,0.00042599,30]
[342842114,1732176641893,-1479.36,0.00042599,18]
[342842115,1732176641905,-695.26,0.00042599,18]
[342842116,1732176641918,-500.0,0.00042599,18]
[342842117,1732176641930,-1474.33,0.00042599,18]
[342842118,1732176641949,-12132.15,0.00042599,18]
[342842119,1732176641962,-500.0,0.00042599,18]
[342842120,1732176641974,-1285.5,0.00042599,18]
[342842121,1732176641988,-500.0,0.00042599,18]
[342842122,1732176642000,-934.1,0.00042599,18]
[342842123,1732176642013,-500.0,0.00042599,18]
[342842124,1732176642025,-6335.85,0.00042599,18]
[342842125,1732176642038,-516.65,0.00042599,18]
[342842126,1732176642050,-1536.85,0.00042599,18]
[342842127,1732176642062,-500.0,0.00042599,18]
[342842128,1732176642075,-2007.82,0.00042599,18]
[342842129,1732176642088,-5422.34,0.00042599,18]
[342842130,1732176642103,-598.95,0.00042599,18]
[342842131,1732176642115,-500.0,0.00042599,18]
[342842132,1732176642128,-1335.19,0.00042599,7]
[342842133,1732176642140,-500.0,0.00042599,18]
[342842134,1732176642153,-500.0,0.00042599,18]
[342842135,1732176642166,-500.0,0.00042599,18]
[342842136,1732176642178,-852.04,0.00042599,18]
[342842137,1732176642192,-500.0,0.00042599,18]
[342842138,1732176642204,-1031.03,0.00042599,18]
[342842139,1732176642217,-1690.4,0.00042599,18]
[342842140,1732176642230,-500.0,0.00042599,18]
[342842141,1732176642242,-500.0,0.00042599,18]
[342842142,1732176642254,-500.0,0.00042599,18]
[342842143,1732176642268,-500.0,0.00042599,18]
[342842144,1732176642281,-535.44,0.00042599,18]
[342842145,1732176642294,-1384.02,0.00042599,18]
[342842146,1732176642306,-2300.55,0.00042599,18]
[342842147,1732176642319,-500.0,0.00042599,18]
[342842148,1732176642332,-500.0,0.00042599,18]
[342842149,1732176642344,-576.14,0.00042599,18]
[342842150,1732176642358,-500.0,0.00042599,18]
[342842151,1732176642371,-1119.42,0.00042599,18]
[342842152,1732176642384,-500.0,0.00042599,18]
[342842153,1732176642397,-500.0,0.00042599,18]
[342842154,1732176642409,-500.0,0.00042599,18]
[342842155,1732176642422,-2204.21,0.00042599,18]
[342842156,1732176642435,-5138.12,0.00042599,18]
[342842157,1732176642447,-888.36,0.00042599,18]
[342842158,1732176642460,-5037.89,0.00042599,18]
[342842159,1732176642472,-1925.82,0.00042599,18]
[342842160,1732176642485,-500.0,0.00042599,18]
[342842161,1732176642498,-4067.65,0.00042599,18]
[342842162,1732176642512,-515.76,0.00042599,18]
[342842163,1732176642525,-500.0,0.00042599,18]
[342842164,1732176642538,-573.25,0.00042599,18]
[342842165,1732176642551,-500.0,0.00042599,18]
[342842166,1732176642564,-1251.3,0.00042599,18]
[342842167,1732176642576,-500.0,0.00042599,18]
[342842168,1732176642589,-500.0,0.00042599,18]
[342842169,1732176642602,-68231.94,0.00042599,5]
[342842170,1732176642614,-500.0,0.00042599,18]
[342842171,1732176642627,-3764.75,0.00042599,18]
[342842172,1732176642639,-500.0,0.00042599,18]
[342842173,1732176642652,-6281.23,0.00042599,18]
[342842174,1732176642665,-500.0,0.00042599,18]
[342842175,1732176642678,-500.0,0.00042599,18]
[342842176,1732176642690,-2390.25,0.00042599,18]
[342842177,1732176642703,-4211.02,0.00042599,18]
[342842178,1732176642716,-500.0,0.00042599,18]
[342842179,1732176642728,-1947.17,0.00042599,18]
[342842180,1732176642740,-910.83,0.00042599,18]
[342842181,1732176642752,-500.0,0.00042599,18]
[342842182,1732176642768,-837.78,0.00042599,18]
[342842183,1732176642780,-3097.2,0.00042599,18]
[342842184,1732176642792,-500.0,0.00042599,18]
[342842185,1732176642804,-500.0,0.00042599,18]
[342842186,1732176642816,-992.19,0.00042599,18]
[342842187,1732176642828,-2347.32,0.00042599,18]
[342842188,1732176642841,-5285.09,0.00042599,18]
[342842189,1732176642853,-1270.69,0.00042599,18]
[342842190,1732176642865,-8572.18,0.00042599,18]
[342842191,1732176642879,-2867.97,0.00042599,18]
[342842192,1732176642891,-500.0,0.00042599,18]
[342842193,1732176642904,-1281.06,0.00042599,18]
[342842194,1732176642915,-500.0,0.00042599,18]
[342842195,1732176642928,-6875.45,0.00042599,18]
[342842196,1732176642941,-500.0,0.00042599,18]
[342842197,1732176642958,-946.26,0.00042599,18]
[342842198,1732176642970,-8426.06,0.00042599,18]
[342842199,1732176642983,-500.0,0.00042599,18]
[342842200,1732176642997,-1808.16,0.00042599,18]
[342842201,1732176643009,-1355.65,0.00042599,18]
[342842202,1732176643023,-1390.31,0.00042599,18]
[342842204,1732176643036,-500.0,0.00042599,18]
[342842205,1732176643049,-500.0,0.00042599,18]
[342842206,1732176643062,-2713.67,0.00042599,18]
[342842207,1732176643074,-2935.7,0.00042599,18]
[342842208,1732176643086,-813.64,0.00042599,18]
[342842209,1732176643098,-500.0,0.00042599,18]
[342842210,1732176643111,-8052.04,0.00042599,18]
[342842211,1732176643124,-500.0,0.00042599,18]
[342842212,1732176643137,-500.0,0.00042599,18]
[342842213,1732176643149,-3654.89,0.00042599,18]
[342842214,1732176643161,-500.0,0.00042599,18]
[342842215,1732176643174,-500.0,0.00042599,18]
[342842216,1732176643186,-2525.72,0.00042599,18]
[342842217,1732176643197,-827.39,0.00042599,18]
[342842219,1732176643210,-843.67,0.00042599,18]
[342842222,1732176643222,-500.0,0.00042599,18]
[342842225,1732176643234,-1808.5,0.00042599,18]
[342842227,1732176643247,-500.0,0.00042599,18]
[342842228,1732176643261,-1198.35,0.00042599,18]
[342842229,1732176643274,-703.76,0.00042599,18]
[342842230,1732176643286,-1501.49,0.00042599,18]
[342842231,1732176643299,-500.0,0.00042599,18]
[342842232,1732176643312,-707.25,0.00042599,18]
[342842233,1732176643324,-2959.61,0.00042599,18]
[342842234,1732176643337,-500.0,0.00042599,18]
[342842235,1732176643350,-1434.92,0.00042599,18]
[342842236,1732176643363,-1082.04,0.00042599,18]
[342842237,1732176643375,-160.2719112,0.00042599,18]
[342842238,1732176643387,-1401.49,0.00042599,18]
[342842239,1732176643400,-500.0,0.00042599,18]
[342842240,1732176643413,-500.0,0.00042599,18]
[342842241,1732176643425,-500.0,0.00042599,18]
[342842242,1732176643438,-1228.15,0.00042599,18]
[342842243,1732176643451,-15097.5,0.00042599,18]
[342842244,1732176643463,-3333.79,0.00042599,18]
[342842245,1732176643475,-500.0,0.00042599,18]
[342842246,1732176643488,-500.0,0.00042599,18]
[342842247,1732176643500,-6071.19,0.00042599,18]
[342842248,1732176643513,-79246.4948,0.000426,2]
[342842249,1732176643525,-37917.8112,0.000426,2]
[342842250,1732176643538,-659.0352,0.000426,2]
[342842251,1732176643550,-500.0,0.00042699,18]
[342842252,1732176643563,-500.0,0.00042699,18]
[342842253,1732176643576,-500.0,0.00042699,18]
[342842254,1732176643589,-865.65,0.00042699,18]
[342842255,1732176643601,-500.0,0.00042699,18]
[342842256,1732176643613,-500.0,0.00042699,18]
[342842257,1732176643625,-2535.35,0.00042699,18]
[342842258,1732176643637,-2701.22,0.00042699,18]
[342842259,1732176643649,-738.61,0.00042699,18]
[342842260,1732176643661,-666.63,0.00042699,18]
[342842261,1732176643674,-793.63,0.00042699,18]
[342842262,1732176643685,-1051.29,0.00042699,18]
[342842263,1732176643698,-2633.56,0.00042699,18]
[342842264,1732176643711,-500.0,0.00042699,18]
[342842265,1732176643723,-1691.64,0.00042699,18]
[342842266,1732176643735,-1991.21,0.00042699,18]
[342842267,1732176643746,-500.0,0.00042699,18]
[342842268,1732176643760,-1801.46,0.00042699,18]
[342842269,1732176643775,-553.23,0.00042699,18]
[342842270,1732176643787,-930.87,0.00042699,18]
[342842271,1732176643799,-500.0,0.00042699,18]
[342842272,1732176643811,-1614.18,0.00042699,18]
[342842273,1732176643824,-1180.2,0.00042699,18]
[342842274,1732176643837,-771.69,0.00042699,18]
[342842275,1732176643850,-1368.87,0.00042699,18]
[342842276,1732176643862,-559.19,0.00042699,18]
[342842277,1732176643872,-500.0,0.00042699,18]
[342842278,1732176643882,-1693.04,0.00042699,18]
[342842279,1732176643892,-500.0,0.00042699,18]
[342842280,1732176643902,-500.0,0.00042699,18]
[342842281,1732176643912,-501.37,0.00042699,18]
[342842282,1732176643923,-786.7,0.00042699,18]
[342842283,1732176643933,-1234.03,0.00042699,18]
[342842284,1732176643943,-742.52,0.00042699,18]
[342842285,1732176643958,-1230.89,0.00042699,18]
[342842286,1732176643967,-810.59,0.00042699,18]
[342842287,1732176643976,-2134.16,0.00042699,18]
[342842288,1732176643987,-500.0,0.00042699,18]
[342842289,1732176643997,-970.99,0.00042699,18]
[342842290,1732176644006,-500.0,0.00042699,18]
[342842291,1732176644021,-500.0,0.00042699,18]
[342842292,1732176644031,-3846.69,0.00042699,18]
[342842293,1732176644041,-500.0,0.00042699,18]
[342842294,1732176644051,-1386.33,0.00042699,18]
[342842295,1732176644061,-500.0,0.00042699,18]
[342842296,1732176644070,-2323.29,0.00042699,18]
[342842297,1732176644080,-500.0,0.00042699,18]
[342842298,1732176644089,-500.0,0.00042699,18]
[342842299,1732176644099,-3508.91,0.00042699,18]
[342842300,1732176644109,-1372.58,0.00042699,18]
[342842301,1732176644118,-866.98,0.00042699,18]
[342842302,1732176644128,-500.0,0.00042699,18]
[342842303,1732176644137,-1806.44,0.00042699,18]
[342842304,1732176644149,-500.0,0.00042699,18]
[342842305,1732176644159,-500.0,0.00042699,18]
[342842306,1732176644168,-1563.44,0.00042699,18]
[342842307,1732176644178,-500.0,0.00042699,18]
[342842308,1732176644188,-531.75,0.00042699,18]
[342842309,1732176644197,-743.43,0.00042699,18]
[342842310,1732176644207,-1917.33,0.00042699,18]
[342842311,1732176644216,-1280.87,0.00042699,18]
[342842312,1732176644225,-856.34,0.00042699,18]
[342842313,1732176644235,-2512.67,0.00042699,18]
[342842314,1732176644244,-500.0,0.00042699,18]
[342842315,1732176645033,-500.0,0.00042699,18]
[342842316,1732176645060,-4218.09,0.00042699,18]
[342842317,1732176645090,-500.0,0.00042699,18]
[342842318,1732176645115,-3316.6,0.00042699,18]
[342842319,1732176645143,-500.0,0.00042699,18]
[342842320,1732176645160,-500.0,0.00042699,18]
[342842321,1732176645169,-518.8,0.00042699,18]
[342842322,1732176645179,-1068.4,0.00042699,18]
[342842323,1732176645188,-500.0,0.00042699,18]
[342842324,1732176645197,-1185.85,0.00042699,18]
[342842325,1732176645207,-1666.62,0.00042699,18]
[342842326,1732176645216,-1189.25,0.00042699,18]
[342842327,1732176645226,-500.0,0.00042699,18]
[342842328,1732176645235,-500.0,0.00042699,18]
[342842329,1732176645244,-500.0,0.00042699,18]
[342842330,1732176645254,-1413.9,0.00042699,18]
[342842331,1732176645263,-1514.38,0.00042699,18]
[342842332,1732176645272,-500.0,0.00042699,18]
[342842333,1732176645282,-500.0,0.00042699,18]
[342842334,1732176645291,-501.00850165,0.00042699,18]
[342842335,1732176645300,-191.04308244,0.00042699,18]
[342842336,1732176645309,-835.83,0.00042699,18]
[342842337,1732176645319,-500.0,0.00042699,18]
[342842338,1732176645328,-1130.33,0.00042699,18]
[342842339,1732176645338,-736.2,0.00042699,18]
[342842340,1732176645348,-500.0,0.00042699,18]
[342842341,1732176645357,-881.69,0.00042699,18]
[342842342,1732176645367,-2905.88,0.00042699,18]
[342842343,1732176645376,-553.96,0.00042699,18]
[342842344,1732176645385,-500.0,0.00042699,18]
[342842345,1732176645394,-2388.19,0.00042699,18]
[342842346,1732176645403,-1185.08,0.00042699,18]
[342842347,1732176645412,-500.0,0.00042699,18]
[342842348,1732176645422,-1227.28,0.00042699,18]
[342842349,1732176645431,-500.0,0.00042699,18]
[342842350,1732176645440,-500.0,0.00042699,18]
[342842351,1732176645449,-500.0,0.00042699,18]
[342842352,1732176645458,-500.0,0.00042699,18]
[342842353,1732176645467,-500.0,0.00042699,18]
[342842354,1732176645476,-3322.41,0.00042699,18]
[342842355,1732176645487,-1058.97,0.00042699,18]
[342842356,1732176645496,-500.0,0.00042699,18]
[342842357,1732176645506,-41966.49519553,0.000427,30]
[342842358,1732176645517,-191.5,0.00042729,30]
[342842359,1732176645527,-500.0,0.00042739,18]
[342842360,1732176645537,-1156.4,0.00042739,18]
[342842361,1732176645546,-500.0,0.00042739,18]
[342842362,1732176645556,-1110.1,0.00042739,18]
[342842363,1732176645565,-735.8,0.00042739,18]
[342842364,1732176645574,-1424.8,0.00042739,18]
[342842365,1732176645583,-954.83,0.00042739,18]
[342842366,1732176645593,-1233.17,0.00042739,18]
[342842367,1732176645602,-743.64,0.00042739,18]
[342842368,1732176645611,-945.64,0.00042739,18]
[342842369,1732176645620,-620.35,0.00042739,18]
[342842370,1732176645629,-500.0,0.00042739,18]
[342842371,1732176645639,-1020.25,0.00042739,18]
[342842372,1732176645648,-718.31,0.00042739,18]
[342842373,1732176645657,-963.26,0.00042739,18]
[342842374,1732176645666,-626.08118514,0.00042739,18]
[342842375,1732176645676,-500.0,0.00042739,18]
[342842376,1732176645685,-1720.92,0.00042739,18]
[342842377,1732176645694,-709.96,0.00042739,18]
[342842378,1732176645704,-1681.51,0.00042739,18]
[342842379,1732176645713,-718.13,0.00042739,18]
[342842380,1732176645723,-589.21,0.00042739,18]
[342842381,1732176645732,-1498.97,0.00042739,18]
[342842382,1732176645742,-500.0,0.00042739,18]
[342842383,1732176645751,-1277.09,0.00042739,18]
[342842384,1732176645761,-1595.3,0.00042739,18]
[342842385,1732176645771,-1010.93,0.00042739,18]
[342842386,1732176645780,-537.11,0.00042739,18]
[342842387,1732176645790,-675.03,0.00042739,18]
[342842388,1732176645799,-500.0,0.00042739,18]
[342842389,1732176645809,-500.0,0.00042739,18]
[342842390,1732176645818,-808.57,0.00042739,18]
[342842391,1732176645827,-582.82,0.00042739,18]
[342842392,1732176645836,-500.0,0.00042739,18]
[342842393,1732176645845,-500.0,0.00042739,18]
[342842394,1732176645855,-500.0,0.00042739,18]
[342842395,1732176645864,-538.12103304,0.00042739,18]
[342842396,1732176645873,-1919.54,0.00042739,18]
[342842397,1732176645882,-1132.56,0.00042739,18]
[342842398,1732176645891,-3552.33,0.00042773,18]
[342842399,1732176645900,-522.61,0.00042773,18]
[342842400,1732176645910,-955.93,0.00042773,18]
[342842401,1732176645920,-500.0,0.00042773,18]
[342842402,1732176645930,-150.0,0.000428,2]
[342842403,1732176645940,-7838.88061455,0.00042821,15]
[342842404,1732176645950,-500.0,0.00042873,18]
[342842405,1732176645959,-1108.59,0.00042873,18]
[342842406,1732176645968,-500.0,0.00042873,18]
[342842407,1732176645978,-18688.3,0.00042873,18]
[342842408,1732176645989,-500.0,0.00042873,18]
[342842409,1732176645998,-500.0,0.00042873,18]
[342842410,1732176646010,-500.0,0.00042873,18]
[342842411,1732176646021,-500.0,0.00042873,18]
[342842412,1732176646032,-500.0,0.00042873,18]
[342842413,1732176646041,-1224.82,0.00042873,18]
[342842414,1732176646050,-500.0,0.00042873,18]
[342842415,1732176646059,-632.82,0.00042873,18]
[342842417,1732176646069,-629.22,0.00042873,18]
[342842418,1732176646078,-695.9,0.00042873,18]
[342842419,1732176646088,-500.0,0.00042873,18]
[342842421,1732176646097,-500.0,0.00042873,18]
[342842423,1732176646106,-500.0,0.00042873,18]
[342842424,1732176646115,-1312.76,0.00042873,18]
[342842425,1732176646125,-500.0,0.00042873,18]
[342842426,1732176646135,-500.0,0.00042873,18]
[342842427,1732176646144,-500.0,0.00042873,18]
[342842428,1732176646153,-750.07,0.00042873,18]
[342842429,1732176646163,-805.26,0.00042873,18]
[342842430,1732176646173,-1363.54,0.00042873,18]
[342842431,1732176646183,-500.0,0.00042873,18]
[342842432,1732176646192,-500.0,0.00042873,18]
[342842433,1732176646201,-500.0,0.00042873,18]
[342842434,1732176646211,-500.0,0.00042873,18]
[342842435,1732176646221,-500.0,0.00042873,18]
[342842436,1732176646230,-500.0,0.00042873,18]
[342842437,1732176646240,-3231.56,0.00042873,18]
[342842438,1732176646250,-367.74,0.00042873,7]
[342842439,1732176646262,-5497.61,0.00042873,18]
[342842440,1732176646271,-500.0,0.00042873,18]
[342842441,1732176646281,-500.0,0.00042873,18]
[342842442,1732176646291,-500.0,0.00042873,18]
[342842443,1732176646301,-500.0,0.00042873,18]
[342842444,1732176646310,-500.0,0.00042873,18]
[342842445,1732176646320,-500.0,0.00042873,18]
[342842446,1732176646329,-1126.77,0.00042873,18]
[342842447,1732176646339,-1119.85,0.00042873,18]
[342842448,1732176646349,-500.0,0.00042873,18]
[342842449,1732176646358,-500.0,0.00042873,18]
[342842450,1732176646368,-500.0,0.00042873,18]
[342842451,1732176646378,-658.75,0.00042873,18]
[342842452,1732176646388,-1769.73,0.00042873,18]
[342842453,1732176646398,-1093.44,0.00042873,18]
[342842454,1732176646408,-6255.25,0.00042873,18]
[342842455,1732176646418,-500.0,0.00042873,18]
[342842456,1732176646427,-11166.38,0.00042873,18]
[342842457,1732176646437,-500.0,0.00042873,18]
[342842458,1732176646447,-500.0,0.00042873,18]
[342842459,1732176646456,-500.0,0.00042873,18]
[342842460,1732176646465,-2021.05,0.00042873,18]
[342842461,1732176646475,-48265.3,0.00042873,18]
[342842462,1732176646484,-1734.43,0.00042873,18]
[342842463,1732176646494,-690.66,0.00042873,18]
[342842464,1732176646503,-166.35877723,0.00042873,18]
[342842465,1732176646516,-500.0,0.00042873,18]
[342842466,1732176646525,-500.0,0.00042873,18]
[342842467,1732176646534,-719.15,0.00042873,18]
[342842468,1732176646544,-1921.16,0.00042873,18]
[342842469,1732176646554,-991.75,0.00042873,18]
[342842470,1732176646563,-2229.18,0.00042873,18]
[342842471,1732176646573,-500.0,0.00042873,18]
[342842472,1732176646582,-850.88,0.00042873,18]
[342842473,1732176646591,-1501.26,0.00042873,18]
[342842474,1732176646601,-500.0,0.00042873,18]
[342842475,1732176646610,-500.0,0.00042873,18]
[342842476,1732176646620,-500.0,0.00042873,18]
[342842477,1732176646630,-779.44,0.00042873,18]
[342842478,1732176646641,-664.4,0.00042873,18]
[342842479,1732176646651,-2234.01,0.00042873,18]
[342842480,1732176646660,-582.82,0.00042873,18]
[342842482,1732176646670,-500.0,0.00042873,18]
[342842483,1732176646679,-500.0,0.00042873,18]
[342842484,1732176646689,-500.0,0.00042873,18]
[342842485,1732176646698,-1118.68,0.00042873,18]
[342842486,1732176646708,-1447.77,0.00042873,18]
[342842487,1732176646718,-1255.38,0.00042873,18]
[342842488,1732176646727,-1672.39,0.00042873,18]
[342842489,1732176646736,-500.0,0.00042873,18]
[342842490,1732176646746,-35263.6,0.00042873,18]
[342842491,1732176646756,-500.0,0.00042873,18]
[342842492,1732176646769,-500.0,0.00042873,18]
[342842493,1732176646779,-500.0,0.00042873,18]
[342842494,1732176646788,-2137.58,0.00042873,18]
[342842495,1732176646798,-500.0,0.00042873,18]
[342842496,1732176646807,-3282.65,0.00042873,18]
[342842497,1732176646816,-2009.54,0.00042873,18]
[342842498,1732176646826,-580.94,0.00042873,18]
[342842499,1732176646835,-500.0,0.00042873,18]
[342842500,1732176646845,-5001.93,0.00042873,18]
[342842501,1732176646855,-3385.18,0.00042873,18]
[342842502,1732176646865,-644.29,0.00042873,18]
[342842503,1732176646874,-500.0,0.00042873,18]
[342842504,1732176646883,-1921.19,0.00042873,18]
[342842505,1732176646893,-500.0,0.00042873,18]
[342842506,1732176646902,-500.0,0.00042873,18]
[342842507,1732176646912,-1910.08,0.00042873,18]
[342842508,1732176646921,-1633.91,0.00042873,18]
[342842509,1732176646931,-500.0,0.00042873,18]
[342842510,1732176646941,-584.61,0.00042873,18]
[342842511,1732176646955,-953.5,0.00042873,18]
[342842512,1732176646968,-629.89,0.00042873,18]
[342842513,1732176646978,-1711.06,0.00042873,18]
[342842514,1732176646989,-500.0,0.00042873,18]
[342842515,1732176646999,-523.64,0.00042873,18]
[342842516,1732176647010,-4029.65,0.00042873,18]
[342842517,1732176647025,-500.0,0.00042873,18]
[342842518,1732176647036,-500.0,0.00042873,18]
[342842519,1732176647047,-699.43,0.00042873,18]
[342842520,1732176647056,-1511.64,0.00042873,18]
[342842521,1732176647066,-500.0,0.00042873,18]
[342842522,1732176647076,-4187.73,0.00042873,18]
[342842523,1732176647086,-500.0,0.00042873,18]
[342842524,1732176647096,-2294.51,0.00042873,18]
[342842525,1732176647105,-2457.99,0.00042873,18]
[342842526,1732176647115,-500.0,0.00042873,18]
[342842527,1732176647124,-500.0,0.00042873,18]
[342842528,1732176647134,-1502.09,0.00042873,18]
[342842529,1732176647143,-1432.32,0.00042873,18]
[342842530,1732176647153,-2000.0,0.00042873,30]
[342842531,1732176647162,-1479.36,0.00042873,18]